[Event "Titled Tuesday Blitz October 5 2021"]
[White "Solovchuk, Oleksiy"]
[Black "Nguyen Hong Nhung"]
[WhiteFideId "14115220"]
[BlackFideId "12412201"]
[WhiteElo "2336"]
[BlackElo "1661"]
[Result "0-1"]
[Round "03"]
[TimeControl "180+1"]
[Date "2021.10.05"]
[WhiteClock "0:01:38"]
[BlackClock "0:01:24"]

1. Nf3 {[%clk 0:02:28]}  f5 {[%clk 0:02:59]} 2. e3 {[%clk 0:02:28]}  Nf6 {[%clk 0:02:59]} 3. d4 {[%clk 0:02:29]}  g6 {[%clk 0:03:00]} 4. Be2 {[%clk 0:02:30]}  Bg7 {[%clk 0:03:00]} 5. O-O {[%clk 0:02:31]}  O-O {[%clk 0:03:01]} 6. b3 {[%clk 0:02:32]}  d6 {[%clk 0:03:01]} 7. Bb2 {[%clk 0:02:33]}  Qe8 {[%clk 0:03:01]} 8. Nbd2 {[%clk 0:02:34]}  Nc6 {[%clk 0:02:59]} 9. c4 {[%clk 0:02:35]}  e5 {[%clk 0:02:59]} 10. d5 {[%clk 0:02:36]}  Nd8 {[%clk 0:02:59]} 11. e4 {[%clk 0:02:36]}  fxe4 {[%clk 0:02:57]} 12. Ng5 {[%clk 0:02:36]}  Bf5 {[%clk 0:02:53]} 13. g4 {[%clk 0:02:31]}  h6 {[%clk 0:02:49]} 14. gxf5 {[%clk 0:02:31]}  hxg5 {[%clk 0:02:49]} 15. fxg6 {[%clk 0:02:30]}  Qxg6 {[%clk 0:02:50]} 16. Re1 {[%clk 0:02:29]}  g4 {[%clk 0:02:41]} 17. Bf1 {[%clk 0:02:29]}  Nf7 {[%clk 0:02:41]} 18. Re3 {[%clk 0:01:52]}  Bh6 {[%clk 0:02:28]} 19. Rg3 {[%clk 0:01:52]}  Bf4 {[%clk 0:02:23]} 20. Rg2 {[%clk 0:01:48]}  Ng5 {[%clk 0:02:15]} 21. Be2 {[%clk 0:01:48]}  Bxd2 {[%clk 0:01:50]} 22. Qxd2 {[%clk 0:01:46]}  Nf3+ {[%clk 0:01:49]} 23. Bxf3 {[%clk 0:01:46]}  exf3 {[%clk 0:01:50]} 24. Rg3 {[%clk 0:01:46]}  Nh5 {[%clk 0:01:47]} 25. Re1 {[%clk 0:01:41]}  Nxg3 {[%clk 0:01:44]} 26. hxg3 {[%clk 0:01:42]}  Rf5 {[%clk 0:01:39]} 27. Re4 {[%clk 0:01:41]}  Kf7 {[%clk 0:01:34]} 28. c5 {[%clk 0:01:38]}  Rh8 {[%clk 0:01:32]} 29. cxd6 {[%clk 0:01:38]}  Qh5 {[%clk 0:01:24]} 0-1


[Site "https://www.chess.com"]

[Event "Titled Tuesday Blitz October 5 2021"]
[White "Stoyanov, Tsvetan"]
[Black "Jobava, Baadur"]
[WhiteFideId "2917173"]
[BlackFideId "13601520"]
[WhiteElo "2191"]
[BlackElo "2731"]
[Result "1-0"]
[Round "03"]
[TimeControl "180+1"]
[Date "2021.10.05"]
[WhiteClock "0:00:21"]
[BlackClock "0:00:45"]

1. e4 {[%clk 0:03:00]}  e5 {[%clk 0:02:59]} 2. Nf3 {[%clk 0:03:01]}  Nf6 {[%clk 0:02:59]} 3. Nc3 {[%clk 0:02:59]}  d6 {[%clk 0:02:59]} 4. d4 {[%clk 0:02:59]}  Nbd7 {[%clk 0:03:00]} 5. Bc4 {[%clk 0:02:59]}  Be7 {[%clk 0:03:01]} 6. O-O {[%clk 0:02:58]}  O-O {[%clk 0:03:01]} 7. a4 {[%clk 0:02:59]}  c6 {[%clk 0:03:02]} 8. Re1 {[%clk 0:02:59]}  h6 {[%clk 0:03:02]} 9. h3 {[%clk 0:02:54]}  Re8 {[%clk 0:03:02]} 10. Be3 {[%clk 0:02:54]}  Qc7 {[%clk 0:03:01]} 11. Qd2 {[%clk 0:02:52]}  Nf8 {[%clk 0:03:01]} 12. Rad1 {[%clk 0:02:47]}  a5 {[%clk 0:03:01]} 13. Bb3 {[%clk 0:02:38]}  N6h7 {[%clk 0:02:59]} 14. d5 {[%clk 0:02:36]}  Nf6 {[%clk 0:02:57]} 15. Qe2 {[%clk 0:02:32]}  Ng6 {[%clk 0:02:45]} 16. Nd2 {[%clk 0:02:30]}  Bf8 {[%clk 0:02:37]} 17. Nc4 {[%clk 0:02:28]}  Ra6 {[%clk 0:02:37]} 18. Qd2 {[%clk 0:02:17]}  Nh4 {[%clk 0:02:29]} 19. Qe2 {[%clk 0:02:06]}  Bd7 {[%clk 0:02:14]} 20. dxc6 {[%clk 0:02:02]}  Rxc6 {[%clk 0:02:01]} 21. Nb5 {[%clk 0:02:00]}  Qb8 {[%clk 0:02:01]} 22. Nxa5 {[%clk 0:02:00]}  Ra6 {[%clk 0:01:58]} 23. Nc4 {[%clk 0:01:50]}  Be6 {[%clk 0:01:47]} 24. Nb6 {[%clk 0:01:36]}  Qd8 {[%clk 0:01:29]} 25. Bxe6 {[%clk 0:01:30]}  fxe6 {[%clk 0:01:28]} 26. Nc4 {[%clk 0:01:28]}  Qb8 {[%clk 0:01:12]} 27. Nb6 {[%clk 0:01:04]}  Ng6 {[%clk 0:01:06]} 28. Qc4 {[%clk 0:01:01]}  Kh7 {[%clk 0:00:53]} 29. Nc7 {[%clk 0:01:00]}  Rxb6 {[%clk 0:00:52]} 30. Bxb6 {[%clk 0:00:59]}  Rc8 {[%clk 0:00:51]} 31. Rd3 {[%clk 0:00:48]}  d5 {[%clk 0:00:50]} 32. Qb5 {[%clk 0:00:36]}  Rxc7 {[%clk 0:00:49]} 33. Bxc7 {[%clk 0:00:36]}  Qxc7 {[%clk 0:00:50]} 34. Rc3 {[%clk 0:00:34]}  Qf7 {[%clk 0:00:50]} 35. exd5 {[%clk 0:00:26]}  exd5 {[%clk 0:00:51]} 36. a5 {[%clk 0:00:26]}  e4 {[%clk 0:00:50]} 37. Rb3 {[%clk 0:00:24]}  Ne5 {[%clk 0:00:45]} 38. Qxb7 {[%clk 0:00:23]}  Qg6 {[%clk 0:00:46]} 39. Rg3 {[%clk 0:00:23]}  Qf5 {[%clk 0:00:44]} 40. a6 {[%clk 0:00:22]}  Bc5 {[%clk 0:00:45]} 41. Qxg7# {[%clk 0:00:21]} 1-0


[Site "https://www.chess.com"]

[Event "Titled Tuesday Blitz October 5 2021"]
[White "Svane, Rasmus"]
[Black "Kubicka, Anna"]
[WhiteFideId "4657101"]
[BlackFideId "1152254"]
[WhiteElo "2643"]
[BlackElo "1903"]
[Result "1-0"]
[Round "03"]
[TimeControl "180+1"]
[Date "2021.10.05"]
[WhiteClock "0:00:55"]
[BlackClock "0:00:03"]

1. Nf3 {[%clk 0:03:00]}  Nf6 {[%clk 0:02:59]} 2. g3 {[%clk 0:03:01]}  g6 {[%clk 0:03:00]} 3. Bg2 {[%clk 0:03:01]}  Bg7 {[%clk 0:03:00]} 4. O-O {[%clk 0:03:02]}  O-O {[%clk 0:03:01]} 5. d4 {[%clk 0:03:02]}  d5 {[%clk 0:03:01]} 6. c4 {[%clk 0:03:00]}  c6 {[%clk 0:03:02]} 7. Qb3 {[%clk 0:03:00]}  Qb6 {[%clk 0:02:59]} 8. Nc3 {[%clk 0:03:00]}  dxc4 {[%clk 0:02:51]} 9. Qxc4 {[%clk 0:02:59]}  Be6 {[%clk 0:02:52]} 10. Qa4 {[%clk 0:02:55]}  Nbd7 {[%clk 0:02:45]} 11. h3 {[%clk 0:02:30]}  Qd8 {[%clk 0:02:32]} 12. e4 {[%clk 0:02:27]}  Nb6 {[%clk 0:02:32]} 13. Qc2 {[%clk 0:02:26]}  Bc4 {[%clk 0:02:19]} 14. Rd1 {[%clk 0:02:26]}  a5 {[%clk 0:02:08]} 15. Be3 {[%clk 0:02:22]}  e6 {[%clk 0:01:55]} 16. Rac1 {[%clk 0:02:13]}  Ba6 {[%clk 0:01:54]} 17. b3 {[%clk 0:02:10]}  Nbd7 {[%clk 0:01:35]} 18. Nd2 {[%clk 0:01:52]}  Rc8 {[%clk 0:01:32]} 19. Nc4 {[%clk 0:01:50]}  Ne8 {[%clk 0:00:48]} 20. e5 {[%clk 0:01:45]}  b5 {[%clk 0:00:41]} 21. Nd2 {[%clk 0:01:43]}  Nb6 {[%clk 0:00:35]} 22. Nde4 {[%clk 0:01:35]}  Nd5 {[%clk 0:00:34]} 23. Nc5 {[%clk 0:01:27]}  Nec7 {[%clk 0:00:27]} 24. N3e4 {[%clk 0:01:22]}  Ra8 {[%clk 0:00:19]} 25. Bg5 {[%clk 0:01:19]}  Qc8 {[%clk 0:00:05]} 26. Nd6 {[%clk 0:01:18]}  Qb8 {[%clk 0:00:04]} 27. Nd7 {[%clk 0:01:18]}  Qa7 {[%clk 0:00:03]} 28. Nxf8 {[%clk 0:01:14]}  Rxf8 {[%clk 0:00:04]} 29. Qxc6 {[%clk 0:01:14]}  b4 {[%clk 0:00:03]} 30. Qd7 {[%clk 0:01:04]}  Nc3 {[%clk 0:00:03]} 31. Be7 {[%clk 0:00:55]} 1-0


[Site "https://www.chess.com"]

[Event "Titled Tuesday Blitz October 5 2021"]
[White "Sydoryka, Vladyslav"]
[Black "Vokhidov, Shamsiddin"]
[WhiteFideId "14145928"]
[BlackFideId "14204223"]
[WhiteElo "2282"]
[BlackElo "2616"]
[Result "1-0"]
[Round "03"]
[TimeControl "180+1"]
[Date "2021.10.05"]
[WhiteClock "0:00:04"]
[BlackClock "0:00:14"]

1. c4 {[%clk 0:03:00]}  e5 {[%clk 0:02:59]} 2. g3 {[%clk 0:03:00]}  c6 {[%clk 0:02:59]} 3. Nf3 {[%clk 0:03:00]}  e4 {[%clk 0:02:59]} 4. Nd4 {[%clk 0:03:01]}  d5 {[%clk 0:02:58]} 5. d3 {[%clk 0:03:01]}  exd3 {[%clk 0:02:54]} 6. Qxd3 {[%clk 0:03:02]}  dxc4 {[%clk 0:02:54]} 7. Qxc4 {[%clk 0:03:03]}  Nf6 {[%clk 0:02:51]} 8. Nc3 {[%clk 0:03:03]}  Be7 {[%clk 0:02:44]} 9. Bg2 {[%clk 0:03:03]}  Nbd7 {[%clk 0:02:45]} 10. Nf5 {[%clk 0:02:50]}  Nb6 {[%clk 0:02:29]} 11. Qf4 {[%clk 0:02:06]}  O-O {[%clk 0:02:24]} 12. Nxe7+ {[%clk 0:01:46]}  Qxe7 {[%clk 0:02:24]} 13. O-O {[%clk 0:01:47]}  Nfd5 {[%clk 0:02:15]} 14. Nxd5 {[%clk 0:01:45]}  Nxd5 {[%clk 0:02:15]} 15. Qf3 {[%clk 0:01:19]}  Nb4 {[%clk 0:02:12]} 16. Bd2 {[%clk 0:01:05]}  Nc2 {[%clk 0:02:09]} 17. Rad1 {[%clk 0:00:57]}  Nd4 {[%clk 0:02:07]} 18. Qd3 {[%clk 0:00:54]}  Rd8 {[%clk 0:02:00]} 19. Bc3 {[%clk 0:00:19]}  Bf5 {[%clk 0:01:58]} 20. e4 {[%clk 0:00:18]}  Bg4 {[%clk 0:01:52]} 21. Bxd4 {[%clk 0:00:16]}  Bxd1 {[%clk 0:01:52]} 22. Qc3 {[%clk 0:00:16]}  Qf8 {[%clk 0:01:25]} 23. Bc5 {[%clk 0:00:08]}  Qe8 {[%clk 0:01:21]} 24. Bd4 {[%clk 0:00:08]}  Rxd4 {[%clk 0:01:08]} 25. Qxd4 {[%clk 0:00:09]}  Bg4 {[%clk 0:01:09]} 26. h3 {[%clk 0:00:07]}  Be6 {[%clk 0:01:08]} 27. a3 {[%clk 0:00:05]}  b6 {[%clk 0:01:08]} 28. e5 {[%clk 0:00:05]}  Rd8 {[%clk 0:01:08]} 29. Qa4 {[%clk 0:00:06]}  c5 {[%clk 0:01:04]} 30. Qxa7 {[%clk 0:00:04]}  Qb5 {[%clk 0:01:03]} 31. Qc7 {[%clk 0:00:03]}  Rc8 {[%clk 0:01:01]} 32. Qe7 {[%clk 0:00:02]}  Qxb2 {[%clk 0:01:00]} 33. Rd1 {[%clk 0:00:03]}  h5 {[%clk 0:00:35]} 34. Be4 {[%clk 0:00:02]}  g6 {[%clk 0:00:20]} 35. Bxg6 {[%clk 0:00:02]}  Rf8 {[%clk 0:00:20]} 36. Rd8 {[%clk 0:00:02]}  Qc1+ {[%clk 0:00:19]} 37. Kh2 {[%clk 0:00:01]}  Rxd8 {[%clk 0:00:18]} 38. Qxd8+ {[%clk 0:00:02]}  Kg7 {[%clk 0:00:19]} 39. Qf6+ {[%clk 0:00:03]}  Kg8 {[%clk 0:00:19]} 40. Bxh5 {[%clk 0:00:02]}  Qd2 {[%clk 0:00:19]} 41. Bg4 {[%clk 0:00:02]}  Bd5 {[%clk 0:00:18]} 42. e6 {[%clk 0:00:01]}  fxe6 {[%clk 0:00:17]} 43. Bxe6+ {[%clk 0:00:01]}  Bxe6 {[%clk 0:00:18]} 44. Qxe6+ {[%clk 0:00:02]}  Kg7 {[%clk 0:00:18]} 45. Qe7+ {[%clk 0:00:02]}  Kg6 {[%clk 0:00:18]} 46. Qe6+ {[%clk 0:00:02]}  Kg7 {[%clk 0:00:19]} 47. Qe7+ {[%clk 0:00:03]}  Kg8 {[%clk 0:00:19]} 48. Qe6+ {[%clk 0:00:02]}  Kf8 {[%clk 0:00:19]} 49. Qf6+ {[%clk 0:00:03]}  Ke8 {[%clk 0:00:20]} 50. Qe6+ {[%clk 0:00:03]}  Kf8 {[%clk 0:00:19]} 51. Qf6+ {[%clk 0:00:03]}  Kg8 {[%clk 0:00:19]} 52. Qg6+ {[%clk 0:00:03]}  Kh8 {[%clk 0:00:19]} 53. Qf6+ {[%clk 0:00:03]}  Kh7 {[%clk 0:00:19]} 54. h4 {[%clk 0:00:03]}  Qd3 {[%clk 0:00:16]} 55. Qxb6 {[%clk 0:00:02]}  c4 {[%clk 0:00:16]} 56. Qc7+ {[%clk 0:00:02]}  Kg6 {[%clk 0:00:16]} 57. a4 {[%clk 0:00:03]}  c3 {[%clk 0:00:16]} 58. a5 {[%clk 0:00:03]}  c2 {[%clk 0:00:17]} 59. Qc6+ {[%clk 0:00:03]}  Kf5 {[%clk 0:00:16]} 60. a6 {[%clk 0:00:04]}  Qd2 {[%clk 0:00:15]} 61. Qc5+ {[%clk 0:00:04]}  Ke4 {[%clk 0:00:15]} 62. a7 {[%clk 0:00:04]}  c1=Q {[%clk 0:00:14]} 63. Qxc1 {[%clk 0:00:05]}  Qxc1 {[%clk 0:00:15]} 64. a8=Q+ {[%clk 0:00:05]}  Ke5 {[%clk 0:00:15]} 65. Qf3 {[%clk 0:00:05]}  Qd2 {[%clk 0:00:14]} 66. Qe3+ {[%clk 0:00:04]} 1-0


[Site "https://www.chess.com"]

[Event "Titled Tuesday Blitz October 5 2021"]
[White "Taboas Rodriguez, Daniel"]
[Black "Oparin, Grigoriy"]
[WhiteFideId "2208466"]
[BlackFideId "24125890"]
[WhiteElo "2429"]
[BlackElo "2604"]
[Result "0-1"]
[Round "03"]
[TimeControl "180+1"]
[Date "2021.10.05"]
[WhiteClock "0:00:27"]
[BlackClock "0:02:19"]

1. d4 {[%clk 0:03:00]}  d6 {[%clk 0:02:59]} 2. Nf3 {[%clk 0:02:59]}  Nf6 {[%clk 0:03:00]} 3. c4 {[%clk 0:02:59]}  g6 {[%clk 0:03:00]} 4. Nc3 {[%clk 0:03:00]}  Bg7 {[%clk 0:03:01]} 5. e4 {[%clk 0:03:01]}  a6 {[%clk 0:03:01]} 6. Be2 {[%clk 0:03:00]}  O-O {[%clk 0:02:59]} 7. O-O {[%clk 0:03:01]}  Nc6 {[%clk 0:03:00]} 8. d5 {[%clk 0:03:00]}  Nb8 {[%clk 0:03:00]} 9. Be3 {[%clk 0:02:54]}  Bg4 {[%clk 0:02:59]} 10. Rc1 {[%clk 0:02:51]}  c6 {[%clk 0:02:58]} 11. h3 {[%clk 0:02:45]}  Bxf3 {[%clk 0:02:58]} 12. Bxf3 {[%clk 0:02:46]}  Nbd7 {[%clk 0:02:56]} 13. Re1 {[%clk 0:02:43]}  Qa5 {[%clk 0:02:53]} 14. a3 {[%clk 0:02:41]}  Rfc8 {[%clk 0:02:53]} 15. Bd2 {[%clk 0:02:37]}  Qd8 {[%clk 0:02:50]} 16. Be2 {[%clk 0:02:33]}  h5 {[%clk 0:02:40]} 17. Bf1 {[%clk 0:02:32]}  Kh7 {[%clk 0:02:36]} 18. Bg5 {[%clk 0:02:29]}  Bh6 {[%clk 0:02:34]} 19. Qd2 {[%clk 0:02:28]}  Bxg5 {[%clk 0:02:34]} 20. Qxg5 {[%clk 0:02:29]}  Kg7 {[%clk 0:02:34]} 21. f4 {[%clk 0:02:25]}  cxd5 {[%clk 0:02:28]} 22. cxd5 {[%clk 0:02:25]}  Qb6+ {[%clk 0:02:28]} 23. Kh1 {[%clk 0:02:18]}  Qxb2 {[%clk 0:02:28]} 24. Qg3 {[%clk 0:01:27]}  h4 {[%clk 0:02:28]} 25. Qe3 {[%clk 0:01:23]}  Nh5 {[%clk 0:02:28]} 26. Kh2 {[%clk 0:01:20]}  Ng3 {[%clk 0:02:27]} 27. e5 {[%clk 0:01:19]}  Nf5 {[%clk 0:02:24]} 28. Qf3 {[%clk 0:01:10]}  dxe5 {[%clk 0:02:23]} 29. fxe5 {[%clk 0:01:10]}  Nxe5 {[%clk 0:02:23]} 30. Qe4 {[%clk 0:00:44]}  Nd7 {[%clk 0:02:19]} 31. Rc2 {[%clk 0:00:34]}  Qxa3 {[%clk 0:02:19]} 32. Rec1 {[%clk 0:00:29]}  Nf6 {[%clk 0:02:18]} 33. Qe5 {[%clk 0:00:29]}  Qd6 {[%clk 0:02:18]} 34. Qxd6 {[%clk 0:00:28]}  exd6 {[%clk 0:02:19]} 35. Na4 {[%clk 0:00:29]}  Rxc2 {[%clk 0:02:18]} 36. Rxc2 {[%clk 0:00:30]}  b5 {[%clk 0:02:19]} 37. Nb6 {[%clk 0:00:29]}  Rb8 {[%clk 0:02:20]} 38. Nc8 {[%clk 0:00:27]}  Nxd5 {[%clk 0:02:19]} 0-1


[Site "https://www.chess.com"]

[Event "Titled Tuesday Blitz October 5 2021"]
[White "Tikhonov, Viacheslav"]
[Black "Acosta, Pablo Ismael"]
[WhiteFideId "44196407"]
[BlackFideId "124311"]
[WhiteElo "1773"]
[BlackElo "2318"]
[Result "0-1"]
[Round "03"]
[TimeControl "180+1"]
[Date "2021.10.05"]
[WhiteClock "0:00:14"]
[BlackClock "0:00:34"]

1. d4 {[%clk 0:03:00]}  Nf6 {[%clk 0:02:58]} 2. c4 {[%clk 0:03:01]}  e6 {[%clk 0:02:58]} 3. Nf3 {[%clk 0:03:00]}  Bb4+ {[%clk 0:02:57]} 4. Nbd2 {[%clk 0:02:59]}  O-O {[%clk 0:02:56]} 5. g3 {[%clk 0:02:59]}  b6 {[%clk 0:02:56]} 6. Bg2 {[%clk 0:02:59]}  Bb7 {[%clk 0:02:57]} 7. O-O {[%clk 0:02:59]}  Bxd2 {[%clk 0:02:51]} 8. Bxd2 {[%clk 0:02:56]}  Ne4 {[%clk 0:02:50]} 9. Ng5 {[%clk 0:02:48]}  d5 {[%clk 0:02:39]} 10. Nxe4 {[%clk 0:02:32]}  dxe4 {[%clk 0:02:40]} 11. Be3 {[%clk 0:02:24]}  Nd7 {[%clk 0:02:36]} 12. Qc2 {[%clk 0:02:22]}  f5 {[%clk 0:02:35]} 13. b4 {[%clk 0:02:21]}  Qe7 {[%clk 0:02:31]} 14. b5 {[%clk 0:02:12]}  c6 {[%clk 0:02:09]} 15. bxc6 {[%clk 0:02:10]}  Bxc6 {[%clk 0:02:09]} 16. a4 {[%clk 0:02:07]}  Rac8 {[%clk 0:02:07]} 17. Qd2 {[%clk 0:02:07]}  Bb7 {[%clk 0:02:06]} 18. Rfc1 {[%clk 0:02:05]}  Ba6 {[%clk 0:02:04]} 19. c5 {[%clk 0:01:48]}  Nf6 {[%clk 0:02:02]} 20. Bg5 {[%clk 0:01:45]}  bxc5 {[%clk 0:01:59]} 21. dxc5 {[%clk 0:01:38]}  Rxc5 {[%clk 0:01:57]} 22. Rxc5 {[%clk 0:01:36]}  Qxc5 {[%clk 0:01:58]} 23. Rc1 {[%clk 0:01:35]}  Qd5 {[%clk 0:01:55]} 24. Qb2 {[%clk 0:01:30]}  Qd7 {[%clk 0:01:45]} 25. Bxf6 {[%clk 0:01:29]}  gxf6 {[%clk 0:01:40]} 26. Qa2 {[%clk 0:01:22]}  Rc8 {[%clk 0:01:38]} 27. Rb1 {[%clk 0:01:15]}  Kg7 {[%clk 0:01:27]} 28. e3 {[%clk 0:01:14]}  Bc4 {[%clk 0:01:23]} 29. Qa3 {[%clk 0:01:09]}  Bd3 {[%clk 0:01:19]} 30. Rb4 {[%clk 0:01:03]}  Qc7 {[%clk 0:01:16]} 31. h4 {[%clk 0:00:56]}  Qc1+ {[%clk 0:01:14]} 32. Qxc1 {[%clk 0:00:57]}  Rxc1+ {[%clk 0:01:14]} 33. Kh2 {[%clk 0:00:58]}  Kg6 {[%clk 0:01:14]} 34. Rb7 {[%clk 0:00:55]}  a6 {[%clk 0:01:13]} 35. h5+ {[%clk 0:00:54]}  Kxh5 {[%clk 0:01:11]} 36. Rxh7+ {[%clk 0:00:54]}  Kg6 {[%clk 0:01:11]} 37. Re7 {[%clk 0:00:54]}  Rc2 {[%clk 0:01:08]} 38. Kg1 {[%clk 0:00:53]}  Rc1+ {[%clk 0:01:05]} 39. Kh2 {[%clk 0:00:54]}  Ra1 {[%clk 0:01:04]} 40. Rxe6 {[%clk 0:00:51]}  Rxa4 {[%clk 0:01:05]} 41. Bh3 {[%clk 0:00:48]}  Ra2 {[%clk 0:01:05]} 42. Kg1 {[%clk 0:00:48]}  a5 {[%clk 0:01:02]} 43. Re7 {[%clk 0:00:45]}  Ra1+ {[%clk 0:00:59]} 44. Kh2 {[%clk 0:00:44]}  Be2 {[%clk 0:00:56]} 45. Ra7 {[%clk 0:00:35]}  Bf3 {[%clk 0:00:51]} 46. Bg2 {[%clk 0:00:35]}  a4 {[%clk 0:00:45]} 47. Ra5 {[%clk 0:00:29]}  a3 {[%clk 0:00:44]} 48. Bxf3 {[%clk 0:00:27]}  exf3 {[%clk 0:00:44]} 49. Ra4 {[%clk 0:00:25]}  Kf7 {[%clk 0:00:41]} 50. Ra6 {[%clk 0:00:23]}  a2 {[%clk 0:00:40]} 51. Ra3 {[%clk 0:00:21]}  Ke6 {[%clk 0:00:40]} 52. Ra5 {[%clk 0:00:21]}  Kd6 {[%clk 0:00:39]} 53. Ra6+ {[%clk 0:00:17]}  Kc5 {[%clk 0:00:39]} 54. Ra3 {[%clk 0:00:18]}  Kb4 {[%clk 0:00:38]} 55. Ra8 {[%clk 0:00:18]}  Kc3 {[%clk 0:00:38]} 56. Ra3+ {[%clk 0:00:16]}  Kd2 {[%clk 0:00:38]} 57. Ra4 {[%clk 0:00:12]}  Ke2 {[%clk 0:00:38]} 58. e4 {[%clk 0:00:13]}  fxe4 {[%clk 0:00:36]} 59. Rxe4+ {[%clk 0:00:13]}  Kxf2 {[%clk 0:00:36]} 60. Ra4 {[%clk 0:00:14]}  Ke2 {[%clk 0:00:35]} 61. Rc4 {[%clk 0:00:14]}  f2 {[%clk 0:00:34]} 0-1


[Site "https://www.chess.com"]

[Event "Titled Tuesday Blitz October 5 2021"]
[White "Timofeev, Artyom"]
[Black "Djordjevic, Vuk"]
[WhiteFideId "4140419"]
[BlackFideId "902098"]
[WhiteElo "2591"]
[BlackElo "2463"]
[Result "1-0"]
[Round "03"]
[TimeControl "180+1"]
[Date "2021.10.05"]
[WhiteClock "0:00:40"]
[BlackClock "0:00:02"]

1. c4 {[%clk 0:03:00]}  e5 {[%clk 0:02:59]} 2. e3 {[%clk 0:03:00]}  Nc6 {[%clk 0:03:00]} 3. Nc3 {[%clk 0:02:59]}  g6 {[%clk 0:03:00]} 4. g3 {[%clk 0:02:58]}  Bg7 {[%clk 0:03:00]} 5. Bg2 {[%clk 0:02:59]}  d6 {[%clk 0:03:00]} 6. d3 {[%clk 0:02:58]}  Nge7 {[%clk 0:02:59]} 7. Nge2 {[%clk 0:02:57]}  Bg4 {[%clk 0:02:58]} 8. h3 {[%clk 0:02:57]}  Be6 {[%clk 0:02:57]} 9. Nd5 {[%clk 0:02:56]}  Qd7 {[%clk 0:02:57]} 10. Nec3 {[%clk 0:02:56]}  O-O {[%clk 0:02:56]} 11. h4 {[%clk 0:02:53]}  h6 {[%clk 0:02:56]} 12. Bd2 {[%clk 0:02:50]}  Nd8 {[%clk 0:02:53]} 13. Nxe7+ {[%clk 0:02:48]}  Qxe7 {[%clk 0:02:54]} 14. h5 {[%clk 0:02:42]}  g5 {[%clk 0:02:53]} 15. g4 {[%clk 0:02:42]}  Qd7 {[%clk 0:02:50]} 16. Bf3 {[%clk 0:02:39]}  f5 {[%clk 0:02:50]} 17. gxf5 {[%clk 0:02:38]}  Bxf5 {[%clk 0:02:50]} 18. Be4 {[%clk 0:02:35]}  Bg4 {[%clk 0:02:50]} 19. Qb3 {[%clk 0:02:32]}  c6 {[%clk 0:02:49]} 20. Ne2 {[%clk 0:01:56]}  Ne6 {[%clk 0:02:47]} 21. Bb4 {[%clk 0:01:55]}  a5 {[%clk 0:02:33]} 22. Ba3 {[%clk 0:01:54]}  a4 {[%clk 0:02:33]} 23. Qc2 {[%clk 0:01:53]}  d5 {[%clk 0:02:28]} 24. Bg6 {[%clk 0:01:51]}  Rfd8 {[%clk 0:02:16]} 25. O-O-O {[%clk 0:01:50]}  b5 {[%clk 0:02:11]} 26. Rhg1 {[%clk 0:01:44]}  Bf3 {[%clk 0:02:04]} 27. Rg3 {[%clk 0:01:41]}  g4 {[%clk 0:01:48]} 28. Bf5 {[%clk 0:01:40]}  Qf7 {[%clk 0:01:48]} 29. Bxg4 {[%clk 0:01:39]}  Bxg4 {[%clk 0:01:46]} 30. Rxg4 {[%clk 0:01:40]}  Qxf2 {[%clk 0:01:46]} 31. Rdg1 {[%clk 0:01:29]}  Qxe3+ {[%clk 0:01:15]} 32. Kb1 {[%clk 0:01:28]}  dxc4 {[%clk 0:01:04]} 33. dxc4 {[%clk 0:01:28]}  Rd2 {[%clk 0:01:04]} 34. Qg6 {[%clk 0:01:27]}  Qxe2 {[%clk 0:00:53]} 35. Qxe6+ {[%clk 0:01:15]}  Kh8 {[%clk 0:00:53]} 36. Rc1 {[%clk 0:01:10]}  Qd3+ {[%clk 0:00:30]} 37. Ka1 {[%clk 0:01:09]}  Rd1 {[%clk 0:00:29]} 38. Rg1 {[%clk 0:01:04]}  Rxg1 {[%clk 0:00:29]} 39. Rxg1 {[%clk 0:01:04]}  Rd8 {[%clk 0:00:30]} 40. Qg4 {[%clk 0:01:04]}  Rd7 {[%clk 0:00:25]} 41. Bf8 {[%clk 0:00:58]}  Qd4 {[%clk 0:00:13]} 42. Bxg7+ {[%clk 0:00:55]}  Kg8 {[%clk 0:00:14]} 43. Qxd4 {[%clk 0:00:49]}  exd4 {[%clk 0:00:13]} 44. Bxd4+ {[%clk 0:00:50]}  Kf8 {[%clk 0:00:13]} 45. Bc3 {[%clk 0:00:49]}  bxc4 {[%clk 0:00:07]} 46. a3 {[%clk 0:00:48]}  Rd5 {[%clk 0:00:08]} 47. Bg7+ {[%clk 0:00:45]}  Ke7 {[%clk 0:00:06]} 48. Bxh6 {[%clk 0:00:45]}  Rxh5 {[%clk 0:00:07]} 49. Bd2 {[%clk 0:00:45]}  Kd6 {[%clk 0:00:06]} 50. Bc3 {[%clk 0:00:46]}  Kc5 {[%clk 0:00:05]} 51. Ka2 {[%clk 0:00:46]}  Kb5 {[%clk 0:00:05]} 52. Rg8 {[%clk 0:00:45]}  c5 {[%clk 0:00:02]} 53. Ra8 {[%clk 0:00:45]}  Kb6 {[%clk 0:00:02]} 54. Rxa4 {[%clk 0:00:44]}  Rh4 {[%clk 0:00:03]} 55. Ra8 {[%clk 0:00:43]}  Kb5 {[%clk 0:00:04]} 56. Rb8+ {[%clk 0:00:43]}  Kc6 {[%clk 0:00:04]} 57. a4 {[%clk 0:00:42]}  Rh7 {[%clk 0:00:04]} 58. a5 {[%clk 0:00:41]}  Ra7 {[%clk 0:00:02]} 59. Ka3 {[%clk 0:00:40]}  Rh7 {[%clk 0:00:02]} 60. Ka4 {[%clk 0:00:40]}  Rh1 {[%clk 0:00:01]} 61. Rb6+ {[%clk 0:00:40]}  Kd5 {[%clk 0:00:02]} 62. Kb5 {[%clk 0:00:40]} 1-0


[Site "https://www.chess.com"]